bitfinex/quotes_ETHUSD_20240926
["timestamp","ask_amount","ask_price","bid_price","bid_amount"]
[1727337214278,7.59467673,2634.1,2633.5,3.03766]
[1727337214489,3.03723,2634.0,2633.3,11.25423]
[1727337214646,3.03723,2634.0,2633.4,3.03787]
[1727337214980,3.03723,2634.0,2633.4,3.0]
[1727337215299,3.03723,2634.0,2633.3,11.25423]
[1727337215300,3.03724,2634.0,2633.5,3.03776]
[1727337215578,3.81543,2633.9,2633.4,6.03788]
[1727337216136,0.7658,2633.8,2633.4,6.03788]
[1727337216376,0.7658,2633.8,2633.3,10.47793]
[1727337216377,1.22206007,2633.8,2633.5,0.04764291]
[1727337216544,0.7658,2633.7,2633.5,0.04764291]
[1727337216741,3.80335,2633.7,2633.2,0.0382175]
[1727337216966,0.7658,2633.7,2633.6,0.04760873]
[1727337217278,1.49547801,2633.7,2633.3,3.03799]
[1727337217482,1.49547801,2633.7,2633.6,0.04760873]
[1727337217643,0.72967801,2633.7,2633.2,0.0382175]
[1727337217845,0.7591,2633.6,2633.2,0.0382175]
[1727337218038,0.7591,2633.6,2633.3,0.04771127]
[1727337218280,1.63602223,2633.6,2633.2,0.0382175]
[1727337218584,0.7873,2633.4,2633.2,0.0382175]
[1727337219104,0.7873,2633.3,2633.2,0.0382175]
[1727337219244,3.82531,2633.3,2633.2,0.0382175]
[1727337219598,4.52112468,2633.3,2633.2,0.0382175]
[1727337220978,1.48311468,2633.3,2633.2,0.0382175]
[1727337221142,4.52112468,2633.3,2633.2,0.0382175]
[1727337221348,1.48311468,2633.3,2633.2,0.0382175]
[1727337221786,0.7873,2633.3,2633.2,0.0382175]
[1727337223878,3.82531,2633.3,2633.2,0.0382175]
[1727337224084,0.7873,2633.3,2633.2,0.0382175]
[1727337231378,0.7873,2633.3,2633.2,0.08460903]
[1727337231583,0.7873,2633.3,2633.2,0.0382175]
[1727337231784,4.89028142,2633.3,2633.2,0.08460903]
[1727337232099,4.89028142,2633.3,2633.2,0.08461616]
[1727337234486,3.82531,2633.3,2633.2,0.08461616]
[1727337235918,0.7873,2633.3,2633.2,0.08461616]
[1727337238823,0.8097,2633.5,2633.2,0.08461616]
[1727337239224,0.8097,2633.8,2633.2,3.12267616]
[1727337239527,3.84717,2633.8,2633.3,3.03795]
[1727337239717,3.84717,2633.8,2633.3,3.08431448]
[1727337239918,3.84717,2633.8,2633.3,0.04636448]
[1727337240139,3.84717,2633.8,2633.2,6.1143375]
[1727337240427,3.84717,2633.8,2633.4,0.04633029]
[1727337240617,3.84717,2633.8,2633.3,0.04636448]
[1727337240791,3.84717,2633.8,2633.5,0.04629611]
[1727337240986,3.03762,2633.7,2633.4,0.04633029]
[1727337241190,3.03762,2633.7,2633.6,0.04626193]
[1727337241412,3.43184504,2633.7,2633.5,0.04629611]
[1727337241616,0.39422504,2633.7,2633.6,0.04626193]
[1727337242031,0.39422504,2633.7,2633.2,6.1143275]
[1727337242324,3.03755,2633.7,2633.2,3.0762675]
[1727337242525,3.03755,2633.7,2633.3,0.04636448]
[1727337242693,0.8097,2633.8,2633.3,3.03793]
[1727337242896,0.8097,2633.8,2633.4,3.08421029]
[1727337243102,0.8097,2633.8,2633.5,3.03777]
[1727337243307,0.8097,2633.8,2633.6,0.04626193]
[1727337244212,3.86386,2634.3,2633.6,0.12220193]
[1727337244397,3.86386,2634.3,2633.7,0.7611]
[1727337244626,3.86386,2634.3,2633.8,3.03743]
[1727337244834,3.86386,2634.3,2633.8,3.08340311]
[1727337245688,3.13160308,2634.5,2633.8,3.08340311]
[1727337245689,0.7787,2634.5,2634.1,3.03701]
[1727337245897,0.7787,2634.5,2634.2,3.0369]
[1727337246092,3.7871657,2634.6,2634.2,6.11947134]
[1727337246321,3.7871657,2634.6,2634.3,3.03684]
[1727337246527,3.7871657,2634.6,2634.4,0.0455406]
[1727337246702,3.7871657,2634.6,2634.4,3.0822706]
[1727337247831,7.5813157,2634.9,2634.4,3.0822106]
[1727337248035,0.8019,2635.1,2634.6,3.03641]
[1727337248235,0.8019,2635.1,2634.6,6.07285]
[1727337248440,0.8019,2635.1,2634.7,3.85086144]
[1727337248798,0.8019,2635.1,2634.7,0.81456144]
[1727337249034,3.03573,2635.3,2635.0,3.03602]
[1727337249035,0.7998,2635.3,2635.0,3.03602]
[1727337249243,4.5869657,2635.5,2635.0,3.03602]
[1727337249394,5.57276827,2635.5,2635.1,0.04492486]
[1727337249599,4.5869657,2635.5,2635.1,0.04492486]
[1727337249799,4.5869657,2635.5,2635.1,3.08083486]
[1727337250011,4.5934657,2635.7,2635.3,3.03564]
[1727337250305,3.7871657,2635.5,2635.4,0.04455246]
[1727337250504,3.7871657,2635.5,2635.1,3.86887]
[1727337250712,3.7871657,2635.5,2635.2,3.08041073]
[1727337251034,3.7871657,2635.5,2635.3,3.0357]
[1727337251531,3.7871657,2635.5,2635.4,0.04455246]
[1727337251733,4.5934657,2635.7,2635.4,0.04455246]
[1727337252036,4.5934657,2635.7,2635.4,3.08011246]
[1727337252350,4.5934657,2635.7,2635.4,3.08009246]
[1727337252560,3.7871657,2635.7,2635.4,0.04455246]
[1727337252904,3.7871657,2635.7,2635.4,3.08013246]
[1727337253116,3.7871657,2635.7,2635.5,3.03546]
[1727337253401,0.0382175,2636.4,2635.7,3.03523]
[1727337253610,6.8222457,2635.9,2635.6,0.0444842]
[1727337253826,6.8222457,2635.9,2635.8,0.04407502]
[1727337254139,3.7871657,2635.9,2635.7,0.04410914]
[1727337254315,0.8213,2636.0,2635.8,0.04407502]
[1727337254511,1.510403,2636.0,2635.3,0.7864]
[1727337254722,1.510403,2636.0,2635.4,0.04282599]
[1727337254723,3.03502,2635.9,2635.4,0.04282599]
[1727337254925,5.2975687,2636.0,2635.5,3.03546]
[1727337255141,0.0382175,2636.4,2635.4,0.04282599]
[1727337255142,3.7871657,2636.2,2635.9,3.03501]
[1727337255302,0.8213,2636.3,2636.0,0.04262124]
[1727337255502,0.0382175,2636.4,2636.0,0.04262124]
[1727337255702,0.0382175,2636.4,2636.0,3.03479]
[1727337255897,0.0382175,2636.4,2635.9,0.07586697]
[1727337255898,0.0382175,2636.4,2636.1,0.04258713]
[1727337256163,0.0382175,2636.4,2636.2,3.03466]
[1727337256306,0.0382175,2636.4,2636.3,0.757]
[1727337256506,0.0382175,2636.4,2636.3,0.04251891]
[1727337257041,0.0382175,2636.4,2636.3,6.91552666]
[1727337257339,0.0382175,2636.4,2636.3,6.83966891]
[1727337257547,0.0382175,2636.4,2636.3,0.80511891]
[1727337257726,0.0382175,2636.4,2636.3,0.04251891]
[1727337257952,0.0382175,2636.4,2636.3,3.07706891]
[1727337258444,0.0382175,2636.4,2636.3,6.15292647]
[1727337258605,0.0382175,2636.4,2636.3,6.92642647]
[1727337259005,3.8253832,2637.2,2636.8,3.03391]
[1727337259432,3.8253832,2637.2,2636.9,3.0761043]
[1727337259654,3.8253832,2637.2,2636.9,0.0423143]
[1727337259655,3.7871657,2637.1,2636.9,0.0423143]
[1727337259800,3.2871657,2637.1,2636.9,0.0423143]
[1727337260519,0.0382175,2637.2,2636.9,3.8663743]
[1727337260719,0.0382175,2637.2,2637.0,3.03364]
[1727337260947,0.0382175,2637.2,2637.1,3.07587611]
[1727337261537,0.0382175,2637.2,2637.1,6.07587611]
[1727337261863,0.0382175,2637.2,2637.1,6.95320508]
[1727337262017,1.00593896,2637.8,2637.1,6.95320508]
[1727337262018,1.00593896,2637.8,2637.5,3.81463]
[1727337262351,1.00593896,2637.8,2637.7,3.83444]
[1727337262717,4.79310466,2637.8,2637.7,0.04121556]
[1727337262922,6.07069051,2637.8,2637.2,3.03348]
[1727337263215,6.07069051,2637.8,2637.6,3.03303]
[1727337263216,1.00593896,2637.8,2637.6,3.03303]
[1727337263415,1.00593896,2637.8,2637.7,6.03294]
[1727337263618,1.00593896,2637.8,2637.7,6.14857004]
[1727337264459,1.00593896,2637.8,2637.7,10.75733574]
[1727337264657,1.00593896,2637.8,2637.7,6.89435957]
[1727337264965,1.00593896,2637.8,2637.7,10.68152527]
[1727337265115,0.04075385,2638.0,2637.9,6.85431]
[1727337265311,0.04075385,2638.0,2637.9,6.96985786]
[1727337265513,0.04075385,2638.0,2637.9,10.86702356]
[1727337265753,0.0390175,2638.7,2638.6,10.5995757]
[1727337266061,0.0390175,2638.7,2638.6,10.63908871]
[1727337266466,0.0390175,2638.7,2638.6,6.85192301]
[1727337267016,0.0390175,2638.7,2638.6,0.82341301]
[1727337267315,0.0390175,2638.7,2638.6,6.85532301]
[1727337268927,0.0390175,2638.7,2638.6,10.64248871]
[1727337269163,0.005,2639.0,2638.9,6.36266]
[1727337269458,0.005,2639.0,2638.9,10.1891899]
[1727337269667,0.005,2639.0,2638.9,6.4020242]
[1727337270287,0.005,2639.0,2638.9,10.1891899]
[1727337271079,0.005,2639.0,2638.9,6.4020242]
[1727337271369,0.005,2639.0,2638.9,10.26495976]
[1727337271539,0.005,2639.0,2638.9,10.1891899]
[1727337271960,0.005,2639.0,2638.9,6.4020242]
[1727337272143,0.005,2639.0,2638.9,6.47779054]
[1727337273175,0.005,2639.0,2638.9,6.4020242]
[1727337273334,0.005,2639.0,2638.9,6.47777854]
[1727337273843,0.005,2639.0,2638.9,6.4020242]
[1727337274046,0.005,2639.0,2638.9,10.1891899]
[1727337274252,0.005,2639.0,2638.9,6.4020242]
[1727337274564,0.005,2639.0,2638.9,0.0393642]
[1727337274764,0.005,2639.0,2638.9,3.03156]
[1727337274955,0.005,2639.0,2638.9,3.06732433]
[1727337275958,0.005,2639.0,2638.9,3.14309972]
[1727337276280,0.005,2639.0,2638.9,3.06732433]
[1727337276843,0.005,2639.0,2638.9,0.03576433]
[1727337277070,3.83355,2639.0,2638.9,0.03576433]
[1727337277272,4.69984178,2639.0,2638.9,0.03576433]
[1727337277469,4.69984178,2639.0,2638.2,3.03227]
[1727337277470,3.03158,2638.9,2638.2,3.03227]
[1727337277640,3.03158,2638.9,2638.0,3.03257]
[1727337277641,3.03187,2638.7,2638.0,3.03257]
[1727337277847,3.714445,2638.7,2638.0,3.03257]
[1727337278065,3.03203,2638.5,2638.0,3.11532017]
[1727337278263,3.03203,2638.5,2638.0,0.08275017]
[1727337278444,3.03231,2638.3,2638.0,0.08275017]
[1727337278659,3.03231,2638.3,2637.7,3.03284]
[1727337278860,3.03248,2638.1,2638.0,0.07092871]
[1727337279065,3.03248,2638.1,2637.1,3.84189]
[1727337279066,3.03248,2638.1,2637.1,0.8083]
[1727337279291,3.03248,2638.1,2637.2,0.07582714]
[1727337279468,0.005,2639.0,2638.3,3.03218]
[1727337279666,0.005,2639.0,2638.1,3.03239]
[1727337279667,3.03165,2638.9,2638.1,3.03239]
[1727337279845,0.09475543,2638.9,2638.2,0.07580435]
[1727337280049,0.005,2639.0,2638.6,3.03183]
[1727337281004,0.005,2639.0,2638.4,3.10781026]
[1727337281212,0.005,2639.0,2638.5,3.03201]
[1727337281799,0.005,2639.0,2638.6,3.0319]
[1727337282311,0.005,2639.0,2638.4,3.03202]
[1727337282517,0.7635,2639.6,2638.9,3.0]
[1727337282800,0.7635,2639.6,2639.5,3.03087]
[1727337283303,0.7635,2640.0,2639.7,3.03062]
[1727337284014,0.7635,2640.0,2639.5,3.03087]
[1727337284187,0.7635,2640.0,2639.5,3.0308]
[1727337284718,0.7635,2640.0,2639.6,3.03064]
[1727337285218,0.7635,2640.0,2639.6,3.03069]
[1727337285521,0.7635,2640.0,2639.5,3.0308]
[1727337285741,3.03008,2640.2,2638.9,3.03149]
[1727337285742,0.7544,2639.8,2638.9,3.03149]
[1727337285927,3.03079,2639.6,2638.9,3.03149]
[1727337286075,3.0309,2639.5,2638.9,3.03149]
[1727337286279,3.0309,2639.5,2638.7,3.03174]
[1727337286280,3.03113,2639.3,2638.7,3.03174]
[1727337286833,3.03158,2638.9,2638.3,3.03225]
[1727337286985,0.30309,2639.4,2638.1,3.03245]
[1727337286986,0.8237,2638.7,2638.1,3.03245]
[1727337287190,3.12674469,2638.6,2637.9,3.03265]
[1727337287792,3.12674469,2638.6,2637.9,3.03263]
[1727337287995,3.03199,2638.6,2638.0,3.03251]
[1727337288414,0.0947605,2638.5,2637.9,3.03263]
[1727337288626,0.0947605,2638.6,2638.1,3.03245]
[1727337288785,1.209242,2638.7,2638.1,3.03245]
[1727337289120,0.8237,2638.7,2638.2,0.07580371]
[1727337289332,0.8237,2638.7,2638.5,3.03194]
[1727337289531,0.8237,2638.7,2638.6,3.03191]
[1727337289827,0.7828,2639.2,2638.7,3.03178]
[1727337289996,0.7828,2639.2,2638.7,3.03169]
[1727337290202,1.17366543,2639.2,2638.7,3.03169]
[1727337291495,0.7828,2639.2,2638.8,3.03158]
[1727337291900,0.7828,2639.2,2638.4,0.07579136]
[1727337292125,0.7828,2639.2,2638.8,3.03159]
[1727337292629,0.7828,2639.2,2638.6,3.0319]
[1727337292834,4.20488519,2639.2,2638.6,3.0319]
[1727337293125,3.03136,2639.1,2638.4,3.03204]
[1727337293290,3.03136,2639.1,2638.5,3.03199]
[1727337293493,3.03158,2638.9,2638.1,3.03237]
[1727337293722,3.78204,2638.7,2637.7,3.0329]
[1727337293929,3.03207,2638.5,2637.9,3.03262]
[1727337294224,0.84496438,2638.4,2637.7,3.0329]
[1727337294426,3.03226,2638.3,2637.7,3.03287]
[1727337294722,3.12714095,2638.2,2637.6,3.03304]
[1727337294893,3.80789,2638.1,2637.3,3.03337]
[1727337295263,0.7754,2637.8,2637.1,3.03358]
[1727337295430,3.03301,2637.7,2637.1,6.06713]
[1727337295604,3.03301,2637.7,2637.1,3.03355]
[1727337295927,0.7754,2637.8,2637.3,3.03332]
[1727337296224,0.87019822,2637.8,2637.5,3.03316]
[1727337296391,0.7754,2637.8,2637.3,3.03332]
[1727337296790,0.8701921,2637.8,2637.3,3.03332]
[1727337297531,0.8701921,2637.8,2637.4,3.03326]
[1727337297914,0.7754,2637.8,2637.5,6.06616]
[1727337298226,0.7754,2637.8,2637.5,3.03307]
[1727337298536,0.09478695,2637.7,2637.3,3.03337]
[1727337299260,0.09479522,2637.8,2636.9,0.006667]
[1727337299557,0.09479522,2637.8,2637.4,3.03327]
[1727337299757,0.09479522,2637.8,2637.4,3.03322]
[1727337299960,0.7887,2637.7,2637.2,3.03345]
[1727337300363,3.82169,2637.7,2637.2,3.03345]
[1727337300751,0.7887,2637.7,2637.0,3.03373]
[1727337301062,0.7887,2637.7,2637.1,3.03356]
[1727337301262,0.09479675,2637.6,2637.2,3.0335]
[1727337302049,3.12788675,2637.6,2637.0,3.0337]
[1727337302248,0.09479675,2637.6,2637.2,3.03351]
[1727337302462,0.09479675,2637.6,2637.0,3.03367]
[1727337302854,3.12785675,2637.6,2636.9,3.040507]
[1727337303048,3.51951243,2637.6,2636.9,3.040507]
[1727337303251,0.7655,2637.4,2636.9,0.006667]
[1727337303480,3.12829326,2637.3,2636.9,0.006667]
[1727337303673,3.03355,2637.2,2636.9,0.006667]
[1727337303839,0.7655,2637.4,2636.9,3.040417]
[1727337304046,0.86030772,2637.4,2637.1,3.03359]
[1727337304268,0.7655,2637.4,2637.1,3.03359]
[1727337304474,0.7655,2637.4,2637.1,6.06714]
[1727337304630,0.7655,2637.4,2637.2,3.03345]
[1727337304825,0.7655,2637.4,2637.3,3.0334]
[1727337305242,0.7655,2637.4,2637.2,3.03345]
[1727337305672,0.7655,2637.4,2637.2,3.03344]
[1727337306328,0.7655,2637.4,2636.9,0.006667]
[1727337306530,0.7655,2637.4,2636.9,3.040507]
[1727337306531,0.86030623,2637.4,2636.9,3.040507]
[1727337306961,0.86030623,2637.4,2636.9,0.006667]
[1727337307173,3.89360623,2637.4,2636.9,3.040507]
[1727337308171,0.7655,2637.4,2637.0,3.03367]
[1727337308390,0.7655,2637.4,2637.1,3.03358]
[1727337308747,0.7655,2637.4,2636.9,0.006667]
[1727337308958,0.7655,2637.4,2637.2,3.03345]
[1727337309141,0.7721,2637.7,2637.3,3.03329]
[1727337309347,0.7721,2637.7,2637.3,3.08509325]
[1727337309545,0.7721,2637.7,2637.3,0.05180325]
[1727337309764,0.7721,2637.7,2637.4,3.03318]
[1727337309968,0.7721,2637.7,2637.4,6.0664]
[1727337310307,0.7585,2638.0,2637.5,5.10095477]
[1727337310470,3.03198,2638.6,2638.0,3.03253]
[1727337310471,0.7585,2638.3,2638.0,3.03253]
[1727337310833,0.7585,2638.3,2638.1,0.05116069]
[1727337311576,0.7585,2638.3,2638.0,3.03257]
[1727337311779,0.7585,2638.3,2638.2,0.05642263]
[1727337311986,0.7585,2638.3,2638.2,3.03237]
[1727337312271,6.06307,2639.0,2638.2,0.05641084]
[1727337312471,0.09475254,2638.9,2638.4,3.03207]
[1727337312837,0.09475254,2638.9,2638.5,0.07194525]
[1727337313785,3.12638254,2638.9,2638.5,0.07194525]
[1727337314085,3.03152,2639.0,2638.5,3.03195]
[1727337314291,3.0,2639.0,2638.6,0.07187228]
[1727337314487,3.0,2639.0,2638.6,3.10375228]
[1727337314805,0.8137,2639.1,2638.6,0.07187228]
[1727337314949,3.03153,2639.0,2638.6,0.07187228]
[1727337315154,3.03165,2638.9,2638.7,0.07179932]
[1727337315477,3.12639722,2638.9,2638.7,0.07179932]
[1727337315688,3.12628103,2639.0,2638.2,0.07580082]
[1727337315883,3.12628103,2639.0,2638.8,0.07108945]
[1727337316177,0.8137,2639.1,2638.6,3.0318]
[1727337316379,0.8137,2639.1,2638.8,3.03158]
[1727337316687,0.8137,2639.1,2638.9,0.0828349]
[1727337317208,3.03583,2639.6,2639.1,3.03126]
[1727337317209,0.005,2639.6,2639.1,3.03126]
[1727337317356,0.09972089,2639.6,2638.9,3.03149]
[1727337317697,6.06189,2639.5,2638.9,3.03149]
[1727337317854,3.03094,2639.5,2638.9,3.03149]
[1727337318292,3.03094,2639.5,2638.9,6.06298]
[1727337318457,0.09972089,2639.6,2638.9,6.06298]
[1727337318458,0.005,2639.6,2638.9,3.03149]
[1727337318792,3.03578,2639.6,2639.1,3.03132]
[1727337318953,3.03089,2639.5,2639.0,3.03143]
[1727337319156,0.09472594,2639.5,2638.7,3.03179]
[1727337319382,3.031,2639.4,2638.8,3.0316]
[1727337320195,3.031,2639.4,2638.9,3.03149]
[1727337320560,3.03112,2639.3,2638.8,3.03167]
[1727337320892,3.031,2639.4,2638.8,3.03167]
[1727337321256,6.06207,2639.4,2638.8,3.03167]
[1727337321456,3.79498,2639.3,2638.7,3.03171]
[1727337321668,3.79498,2639.3,2638.7,6.06343]
[1727337321872,0.7638,2639.3,2638.8,3.03164]
[1727337322102,0.7638,2639.3,2638.7,3.03171]
[1727337322103,3.79493,2639.3,2638.7,6.06343]
[1727337322320,0.7638,2639.3,2638.8,3.03165]
[1727337322966,0.7638,2639.3,2638.7,3.03171]
[1727337323167,0.7638,2639.3,2638.9,3.03156]
[1727337323471,0.0947317,2639.5,2639.1,3.0313]
[1727337323898,0.7866,2639.6,2639.1,3.0313]
[1727337324097,0.7866,2639.6,2639.1,3.1070835]
[1727337324411,0.7866,2639.6,2639.3,3.0311]
[1727337325171,0.7866,2639.6,2639.4,3.03097]
[1727337325729,0.005,2639.6,2639.4,3.03097]
[1727337325875,0.005,2639.6,2639.4,6.06184]
[1727337326080,0.005,2639.6,2639.4,3.03092]
[1727337329635,0.005,2639.6,2639.3,3.03103]
[1727337329799,0.005,2639.6,2639.2,3.03114]
[1727337330339,0.005,2639.6,2639.3,3.03101]
[1727337330858,0.005,2639.6,2639.5,3.03087]
[1727337331631,0.0259249,2639.6,2639.5,3.03087]
[1727337333902,0.0259249,2639.6,2639.2,3.03114]
[1727337334099,0.8137249,2639.6,2639.2,3.03114]
[1727337334302,0.8137249,2639.6,2639.3,3.03104]
[1727337334828,0.8137249,2639.6,2639.2,6.0623]
[1727337335214,0.8137249,2639.6,2639.2,6.06228]
[1727337335526,0.8137249,2639.6,2639.2,3.03114]
[1727337335906,0.8137249,2639.6,2639.4,3.03091]
[1727337336129,0.8137249,2639.6,2639.4,6.06184]
[1727337336335,0.8137249,2639.6,2639.4,3.03091]
[1727337336494,0.0259249,2639.6,2639.5,3.03087]
[1727337337647,0.0259249,2639.6,2639.4,3.03092]
[1727337337954,0.0259249,2639.6,2639.5,3.03087]
[1727337338115,0.0259249,2639.6,2639.4,3.03091]
[1727337338615,0.0259249,2639.6,2639.4,6.06183]
[1727337338923,0.0259249,2639.6,2639.5,3.03087]
[1727337339129,0.0259249,2639.6,2639.5,3.10663851]
[1727337339550,0.0259249,2639.6,2639.5,3.03087]
[1727337340424,0.0259249,2639.6,2639.5,6.78837]
[1727337340633,0.0259249,2639.6,2639.5,6.86413314]
[1727337341540,0.0259249,2639.6,2639.5,6.78837]
[1727337341938,0.0259249,2639.6,2639.5,6.03087]
[1727337342914,0.0259249,2639.6,2639.5,3.03087]
[1727337345064,0.0259249,2639.6,2639.2,3.03118]
[1727337345260,0.0259249,2639.6,2638.9,3.03156]
[1727337345421,0.0259249,2639.6,2639.2,3.03113]
[1727337345621,0.0259249,2639.6,2639.3,3.0311]
[1727337346155,0.0259249,2639.6,2639.4,3.03096]
[1727337346543,0.0259249,2639.6,2639.2,3.03113]
[1727337347355,3.0566949,2639.6,2639.2,3.03113]
[1727337347558,0.8058,2639.5,2639.2,3.03113]
[1727337348722,0.8267249,2639.5,2639.2,3.03113]
[1727337348923,0.8267249,2639.5,2639.2,6.06228]
[1727337349240,0.8267249,2639.5,2639.2,3.03113]
[1727337349921,1.21297439,2639.5,2638.8,3.03161]
[1727337350126,3.12578172,2639.4,2638.9,3.03154]
[1727337350426,0.7793,2639.3,2638.9,3.03154]
[1727337350652,0.09473172,2639.2,2638.1,7.07327693]
[1727337350958,0.7793,2638.9,2638.6,3.0319]
[1727337351464,3.81087,2638.9,2638.4,3.03203]
[1727337351675,0.7793,2638.9,2638.1,4.85939693]
[1727337351975,0.7793,2638.9,2638.5,6.06386]
[1727337352183,0.7793,2638.9,2638.5,3.03193]
[1727337352539,0.8294,2639.1,2638.9,3.03149]
[1727337352738,0.8294,2639.1,2638.9,6.06295]
[1727337352981,0.8294,2639.1,2638.9,3.03146]
[1727337353475,0.8294,2639.1,2638.8,3.03165]
[1727337354237,0.8294,2639.1,2638.7,6.06343]
[1727337355039,0.8294,2639.1,2638.8,3.03165]
[1727337355645,0.8294,2639.1,2638.7,6.0634]
[1727337355977,0.8294,2639.1,2638.7,3.03169]
[1727337356183,0.8294,2639.1,2638.8,3.0316]
[1727337356679,0.8294,2639.1,2638.8,3.03162]
[1727337357054,0.8294,2639.1,2638.7,3.03169]
[1727337357258,0.8294,2639.1,2638.8,3.03167]
[1727337357461,0.8294,2639.1,2638.7,6.06342]
[1727337358480,0.8294,2639.1,2638.8,3.03162]
[1727337359490,0.8294,2639.1,2638.7,6.06339]
[1727337359943,0.8294,2639.1,2638.8,3.03166]
[1727337360942,0.8294,2639.1,2638.7,6.06341]
[1727337361355,0.8294,2639.1,2638.7,3.03169]
[1727337361561,0.8294,2639.1,2638.7,6.06341]
[1727337361968,0.8294,2639.1,2638.7,3.03169]
[1727337363684,0.8294,2639.1,2638.8,3.03167]
[1727337363890,1.47146667,2639.1,2638.4,3.03212]
[1727337364187,3.03158,2638.9,2638.4,3.03212]
[1727337364794,3.03158,2638.9,2638.3,6.06431]
[1727337365120,3.03158,2638.9,2638.3,3.03215]
[1727337365121,3.79869,2638.8,2638.3,3.03215]
[1727337365266,3.03185,2638.7,2638.1,3.03241]
[1727337365463,0.767,2638.3,2637.9,3.03264]
[1727337366860,0.767,2638.3,2637.7,3.03287]
[1727337366861,3.03238,2638.2,2637.7,3.03287]
[1727337367072,3.03238,2638.2,2637.5,3.03311]
[1727337367073,3.12715473,2638.2,2637.5,3.03311]
[1727337367306,1.59184695,2638.5,2637.9,3.03268]
[1727337367307,0.7944,2638.1,2637.9,3.03268]
[1727337368180,0.7944,2638.1,2637.7,3.03288]
[1727337368356,0.7944,2638.1,2637.8,3.03279]
[1727337368768,0.7944,2638.1,2637.7,3.03288]
[1727337369258,3.82695,2638.1,2637.5,3.03311]
[1727337369455,3.03274,2637.9,2637.1,7.44]
[1727337369692,3.03305,2637.7,2637.0,3.03371]
[1727337369861,3.83423,2637.6,2637.0,3.03371]
[1727337370057,0.8011,2637.6,2637.1,3.03353]
[1727337370496,3.83417,2637.6,2637.0,6.06732]
[1727337370699,3.79609,2637.5,2636.8,6.0853265]
[1727337370869,6.92415388,2637.5,2636.9,3.11657555]
[1727337371192,3.89089388,2637.5,2636.9,3.11657555]
[1727337371907,3.89089388,2637.5,2637.0,3.03374]
[1727337372092,0.8204,2637.4,2636.9,0.08271555]
[1727337372396,0.8204,2637.2,2636.9,0.08271555]
[1727337373296,0.8204,2637.2,2637.1,3.03363]
[1727337373460,0.8204,2637.2,2637.1,3.097596]
[1727337374981,0.8204,2637.2,2637.1,0.063966]
[1727337378978,0.8204,2637.2,2636.8,3.0514565]
[1727337378979,3.85416,2636.9,2636.8,0.0174965]
[1727337379219,3.94898833,2636.9,2636.8,0.0174965]
[1727337384575,6.94898833,2636.9,2636.8,0.0174965]
[1727337385001,7.86464945,2636.1,2636.0,0.0384214]
[1727337385465,3.81798,2636.1,2636.0,0.0384214]
[1727337385585,7.95951429,2636.1,2636.0,0.0384214]
[1727337385782,7.86464945,2636.1,2636.0,0.0384214]
[1727337387887,3.81798,2636.1,2636.0,0.0384214]
[1727337388089,3.91283425,2636.1,2636.0,0.0384214]
[1727337388621,9.02958801,2636.1,2636.0,0.0384214]
[1727337388793,3.81798,2636.1,2636.0,0.0384214]
[1727337389003,7.95950382,2636.1,2636.0,0.0384214]
[1727337389221,7.86464945,2636.1,2636.0,0.0384214]
[1727337404887,3.81798,2636.1,2636.0,0.0384214]
[1727337405069,8.64477139,2636.1,2636.0,0.0384214]
[1727337405271,8.54991445,2636.1,2636.0,0.0384214]
[1727337410850,4.503245,2636.1,2636.0,0.0384214]
[1727337411051,8.64477769,2636.1,2636.0,0.0384214]
[1727337411391,8.54991445,2636.1,2636.0,0.0384214]
[1727337411543,0.685265,2636.1,2636.0,0.0384214]
[1727337411786,3.03467,2636.2,2636.0,0.0384214]
[1727337411787,3.12952068,2636.2,2636.0,0.0384214]
[1727337411988,3.03478,2636.1,2636.0,0.0384214]
[1727337412518,7.08144945,2636.1,2636.0,0.0384214]
[1727337413000,7.17630052,2636.1,2636.0,0.0384214]
[1727337413323,8.19739757,2636.1,2636.0,0.0384214]
[1727337413523,8.1025465,2636.1,2636.0,0.0384214]
[1727337419829,4.05587705,2636.1,2636.0,0.0384214]
[1727337420133,4.15072896,2636.1,2636.0,0.0384214]
[1727337420503,8.19739841,2636.1,2636.0,0.0384214]
[1727337420691,8.1025465,2636.1,2636.0,0.0384214]
[1727337422399,1.59184695,2636.5,2636.1,3.8378]
[1727337422597,4.62554695,2637.1,2636.4,3.86002]
[1727337422844,3.03382,2637.0,2636.5,3.03432]
[1727337423134,3.12864022,2637.0,2636.5,3.03432]
[1727337423286,3.12864022,2637.0,2636.4,0.8256]
[1727337423287,3.03404,2636.8,2636.4,0.8256]
[1727337423491,3.03418,2636.7,2636.4,0.8256]
[1727337423925,3.03421,2636.6,2636.4,0.8256]
[1727337424595,3.03421,2636.6,2636.1,0.7878]
[1727337425006,3.03421,2636.6,2636.1,3.82257]
[1727337425225,3.03421,2636.6,2636.1,6.85728]
[1727337425750,3.12885035,2636.8,2636.2,3.0346]
[1727337426230,3.03423,2636.6,2636.1,3.82251]
[1727337430301,5.59750302,2636.7,2636.2,3.03466]
[1727337430503,1.59184695,2636.8,2636.3,3.03449]
[1727337430734,1.59184695,2636.9,2636.4,0.7788]
[1727337431051,1.59184695,2636.9,2636.4,3.81317]
[1727337432251,4.62580695,2636.9,2636.4,0.7788]
[1727337432608,5.14116337,2636.9,2636.4,3.81318]
[1727337432803,5.14116337,2636.9,2636.4,0.7788]
[1727337433009,5.14114337,2636.9,2636.4,0.7788]
[1727337433238,5.14114337,2636.9,2636.4,3.81317]
[1727337433554,4.62578695,2636.9,2636.4,0.7788]
[1727337433724,3.03415,2636.7,2636.4,0.7788]
[1727337434733,3.12884009,2636.8,2636.4,0.7788]
[1727337435533,0.09482009,2636.8,2636.4,0.7788]
[1727337435725,3.03415,2636.7,2636.4,0.7788]
[1727337435919,3.03428,2636.6,2636.4,0.7788]
[1727337436139,3.03428,2636.6,2636.1,0.8132]
[1727337436450,3.03422,2636.6,2636.1,3.84797]
[1727337437116,3.03415,2636.7,2636.1,3.84797]
[1727337437314,3.03423,2636.6,2636.1,3.84797]